Cogmind - Beta 16 --- EXPLORER MODE // 2026.01.26 @ 11:21:19 Player: K.K.Y. Result: Self-destructed Performance ------------- Evolutions (1) 500 Regions Visited (3) 600 Robots Destroyed (31) 155 Value Destroyed (529) 529 Prototype IDs (0) 0 Alien Tech Used (0) 0 Bonus (-271) -271 TOTAL SCORE: 1513 Bonus ------- Friendly Fire -271 Cogmind --------- Core Integrity 400/400 Matter 300/300 Energy 140/140 System Corruption 0% Temperature Cool (0) Movement Treading (152) Location -9/Materials Parts ------- > --- POWER (1) -------- Light Deuterium Engine > --- PROPULSION (3) --- Light Treads Advanced Treads > --- UTILITY (4) ------ Improved Heat Sink Large Storage Unit Light Armor Plating > --- WEAPON (2) ------- Particle Gun Particle Gun > --- INVENTORY (15) --- Light Nuclear Core Light Treads Light Treads Improved Heat Sink High-capacity Storage Unit Structural Scanner Sensor Array Improved Terrain Scanner EM Pulse Cannon Shock Bomb Launcher Missile Launcher Mining Laser Makeshift Sword Peak State ------------ > --- POWER ------------ Light Deuterium Engine > --- PROPULSION ------- Light Treads Advanced Treads > --- UTILITY ---------- Improved Heat Sink Large Storage Unit Light Armor Plating > --- WEAPON ----------- Particle Gun Particle Gun > --- INVENTORY -------- Light Nuclear Core Light Treads Light Treads Improved Heat Sink High-capacity Storage Unit Structural Scanner Sensor Array Improved Terrain Scanner EM Pulse Cannon Mining Laser Makeshift Sword [Rating: 18] Favorites ----------- Power Light Nuclear Core Engine Ion Engine Power Core Light Nuclear Core Propulsion Light Treads Treads Light Treads Utility Large Storage Unit Device Improved Heat Sink Storage Large Storage Unit Protection Light Armor Plating Weapon Particle Gun Energy Gun Particle Gun Ballistic Gun Assault Rifle Special Weapon Mining Laser Build | -11 -10 -10 -9 ------- Run | Yrd Mat Min Mat Slots Evolved 3 | . 1 . 2 Power . | . . . . Propulsion 1 | . . . 1 Utility 2 | . 1 . 1 Weapon . | . . . . Parts Attached 18 | 5 9 4 . Power 3 | 1 1 1 . Engine 2 | 1 . 1 . Core 1 | . 1 . . Reactor . | . . . . Propulsion 6 | 1 3 2 . Treads 6 | 1 3 2 . Leg . | . . . . Wheel . | . . . . Hover . | . . . . Flight . | . . . . Utility 4 | 1 2 1 . Device 1 | . 1 . . Storage 2 | 1 1 . . Processor . | . . . . Hackware . | . . . . Protection 1 | . . 1 . Artifact . | . . . . Weapon 5 | 2 3 . . Energy Gun 3 | 1 2 . . Energy Cannon . | . . . . Ballistic Gun 1 | 1 . . . Ballistic Cannon . | . . . . Launcher . | . . . . Special Weapon 1 | . 1 . . Impact Weapon . | . . . . Slashing Weapon . | . . . . Piercing Weapon . | . . . . Special Melee Weapon . | . . . . Unidentified Prototypes . | . . . . Parts Lost . | . . . . Power . | . . . . Propulsion . | . . . . Utility . | . . . . Weapon . | . . . . Highest Loss Streak . | . . . . To Critical Strikes . | . . . . Average Backups 8 | 1 7 10 . Power . | . . . . Propulsion 2 | . 2 3 . Utility 4 | . 3 5 . Weapon 1 | . 1 1 . Tool/Special . | . . . . Unused Backups 8 | . . . 8 Power . | . . . . Propulsion 1 | . . . 1 Utility 5 | . . . 5 Weapon 2 | . . . 2 Tool/Special . | . . . . Average Slot Usage (%) 77 | . 68 87 . Engine 3 | . 5 . . Core 7 | . 4 11 . Treads 21 | . 18 25 . Device 9 | . 6 12 . Storage 12 | . 12 12 . Energy Gun 21 | . 18 25 . Ballistic Gun 1 | . 2 . . Peak Build Rating 18 | 5 14 18 . Average Rating 10 | 4 8 14 . On Entrance 9 | . 5 14 18 Avg Prop Armor Cover (%) 11 | . . 11 . Naked Turns . | . . . . Heaviest Build 35 | 19 32 35 . Greatest Support 42 | 20 40 42 . Greatest Overweight (x) 8 | . 8 1 . Average Overweight (x) . | . . . . Largest Inventory Capacity 15 | 10 15 15 . Average Capacity 13 | 9 13 15 . Most Carried 14 | 5 14 14 . Average Carried 8 | 1 7 10 . Final Capacity 15 | 10 15 15 15 Final Carried 13 | 2 9 13 13 Class Distribution -------------------- 57% | Scavenger-Mutant 42% | Hacker-Mutant Dominant Class ---------------- Hacker-Mutant | -10/Materials Scavenger-Mutant | -10/Mines Scavenger-Mutant | -9/Materials Resources | -11 -10 -10 -9 ----------- Run | Yrd Mat Min Mat Matter Collected 554 | 283 231 40 . Remotely . | . . . . Salvage Created 1021 | 175 673 173 . Parts 58 | 11 38 9 . Haulers Intercepted 2 | . 2 . . Recyclers Shooed . | . . . . Parts Field Recycled . | . . . . Retrieved Matter . | . . . . Parts Self-Destructed . | . . . . Prevented . | . . . . Parts Restored . | . . . . Kills | -11 -10 -10 -9 ------- Run | Yrd Mat Min Mat Combat Hostiles Destroyed 12 | . 8 4 . Guns 11 | . 7 4 . Classes Destroyed 7 | 2 4 1 . Builder 6 | . 6 . . Tunneler 6 | 5 . 1 . Hauler 2 | . 2 . . Recycler 2 | 1 1 . . Watcher 2 | . 2 . . Swarmer 2 | . . 2 . Grunt 10 | . 8 2 . Thug 1 | . . 1 . Best Kill Streak 3 | 2 3 3 . Combat Bots Only 2 | . 2 2 . Max Kills in Single Turn 2 | 1 2 1 . Gunslinging 1 | . 1 . . Exploded . | . . . . Melee . | . . . . Uniques/NPCs Destroyed . | . . . . Combat | -11 -10 -10 -9 -------- Run | Yrd Mat Min Mat Hostile Shots Fired 72 | . 50 22 . Missed 20 | . 14 6 . Hits 52 | . 36 16 . Projectile 52 | . 36 16 . Critical Strikes 1 | . 1 . . Damage Taken 379 | . 263 116 . Core 55 | . 36 19 . Absorbed by Shields . | . . . . Ignored by Resistances 241 | . 168 73 . Core Remaining (%) 89 | 100 . 78 . Volleys Fired 87 | 11 58 18 . Largest 2 | 2 2 2 . Hottest 165 | 70 165 130 . Shots Fired 145 | 22 87 36 . Gun 144 | 22 86 36 . Cannon . | . . . . Launcher . | . . . . Special 1 | . 1 . . Kinetic 28 | 11 17 . . Thermal 117 | 11 70 36 . Explosive . | . . . . Electromagnetic . | . . . . Robot Hit Streak 26 | 10 26 11 . Robot Miss Streak 2 | 2 1 2 . Penetration Max . | . . . . Secondary Targets 2 | . 1 1 . Max Gunslinging Chain 1 | . 1 1 . Shots Hit Robots 120 | 19 75 26 . Core Hits 41 | 7 27 7 . Critical Kills . | . . . . Critical Parts Destroyed . | . . . . Critical Strikes 6 | . 5 1 . Burn 6 | . 5 1 . Melee Attacks . | . . . . Impact . | . . . . Slashing . | . . . . Piercing . | . . . . Sneak Attacks . | . . . . Combat Hostiles . | . . . . Follow-up Attacks . | . . . . Damage Inflicted 1658 | 234 1015 409 . Guns 1651 | 234 1010 407 . Cannons . | . . . . Explosions . | . . . . Melee . | . . . . Ramming 7 | . 5 2 . Kinetic 303 | 123 180 . . Thermal 1348 | 111 830 407 . Explosive . | . . . . Electromagnetic . | . . . . Impact . | . . . . Slashing . | . . . . Piercing . | . . . . Highest Corruption . | . . . . Average Corruption . | . . . . Corruption Purged . | . . . . Corruption Blocked . | . . . . Overload Shots . | . . . . Overflow Damage . | . . . . Projectiles . | . . . . Explosions . | . . . . Melee . | . . . . Knockbacks . | . . . . Impact . | . . . . Kinetic . | . . . . Secondary . | . . . . Self-Inflicted Damage . | . . . . Shots . | . . . . Rammed 3 | . 1 2 . Targets Rammed 3 | . 1 2 . Kicked . | . . . . Crushed . | . . . . Highest Temperature 420 | 56 129 420 . Average Temperature 66 | 17 42 136 . Received Heat Transfer 342 | . 255 87 . Effects 3 | . . 3 . Energy Bleed 1 | . . 1 . Short Circuit 1 | . . 1 . Damage (minor) 1 | . . 1 . Siege Activations . | . . . . Martial Activations . | . . . . Shielding Activations . | . . . . Robots Disrupted . | . . . . Combat Hostiles . | . . . . Robots Corrupted . | . . . . Combat Hostiles . | . . . . Parts Fried . | . . . . Impact Corruptions . | . . . . Robots Melted 2 | . 1 1 . Combat Hostiles 1 | . 1 . . Parts Melted 13 | . 10 3 . Heat Transferred 3996 | 333 2627 1036 . Parts Sabotaged . | . . . . Parts Stolen . | . . . . Parts Stripped . | . . . . Power Chain Reactions . | . . . . Alert | -11 -10 -10 -9 ------- Run | Yrd Mat Min Mat Maximum Alert Level . | . . . . Low Security (%) 100 | 100 100 100 . Level 1 . | . . . . Level 2 . | . . . . Level 3 . | . . . . Level 4 . | . . . . Level 5 . | . . . . High Security . | . . . . Max Security . | . . . . Peak Influence 50 | 5 50 40 . Initial . | . . . . Average 4 | . 5 2 . Influence Increases 481 | 30 328 123 . Destroy 0b10 Robot/C 240 | . 160 80 . Destroy 0b10 Robot/NC 90 | 30 55 5 . Destroy Leader 68 | . 48 20 . Successful Hack 49 | . 46 3 . Disable Machine 4 | . 4 . . Lose Combat Pursuer 30 | . 15 15 . Influence Decreases 481 | 30 328 123 . Time Decay 469 | 30 316 123 . Purge Threat 12 | . 12 . . Squads Dispatched 3 | . 2 1 . Investigation 3 | . 2 1 . Extermination . | . . . . Reinforcement . | . . . . Assault . | . . . . Garrison . | . . . . Intercept . | . . . . Searches Triggered . | . . . . Construction Impeded . | . . . . Haulers Reinforced . | . . . . Active Scanning Responses . | . . . . Cargo Convoy Interrupts . | . . . . Stealth | -11 -10 -10 -9 --------- Run | Yrd Mat Min Mat Distress Signals 1 | . 1 . . Communications Jammed . | . . . . Distress Signals . | . . . . Times Spotted 21 | . 15 6 . Peak Tracking Total 3 | . 3 3 . Tactical Retreats 2 | . 1 1 . Traps | -11 -10 -10 -9 ------- Run | Yrd Mat Min Mat Traps Triggered 8 | . 8 . . Indirectly . | . . . . Trap Hack Attempts . | . . . . Triggered . | . . . . Disarmed . | . . . . Reprogrammed . | . . . . Reused . | . . . . Traps Extracted . | . . . . Installed . | . . . . Triggered . | . . . . Machines | -11 -10 -10 -9 ---------- Run | Yrd Mat Min Mat Machines Disabled 1 | . 1 . . Max in Single Turn 1 | . 1 . . Machines Repaired . | . . . . Machines Dismantled . | . . . . Machines Sabotaged . | . . . . Overloaded Fab Kills . | . . . . Hacking | -11 -10 -10 -9 --------- Run | Yrd Mat Min Mat Machines Accessed 11 | . 9 2 . Terminals 8 | . 7 1 . Fabricators . | . . . . Repair Stations . | . . . . Recycling Units 2 | . 2 . . Scanalyzers . | . . . . Garrison Access . | . . . . Total Hacks 25 | . 23 2 . Successful 18 | . 16 2 . Failed 7 | . 7 . . Catastrophic 1 | . 1 . . Database Lockouts . | . . . . Manual 19 | . 18 1 . Terminals 20 | . 19 1 . Fabricators . | . . . . Repair Stations . | . . . . Recycling Units 4 | . 4 . . Scanalyzers . | . . . . Garrison Access . | . . . . Terminal Hacks 14 | . 13 1 . Part Schematic 7 | . 7 . . Robot Schematic 4 | . 4 . . Open Door 1 | . . 1 . Unreport Threat 1 | . 1 . . Locate Traps 1 | . 1 . . Fabricator Hacks . | . . . . Repair Station Hacks . | . . . . Recycling Unit Hacks 1 | . 1 . . Retrieve Components 1 | . 1 . . Scanalyzer . | . . . . Garrison Access Hacks . | . . . . Unauthorized Hacks 3 | . 2 1 . Terminals 3 | . 2 1 . Botnet 3 | . 2 1 . Fabricators . | . . . . Repair Stations . | . . . . Recycling Units . | . . . . Scanalyzers . | . . . . Garrison Access . | . . . . Data Cores Recovered . | . . . . Used . | . . . . Hacking Detections 7 | . 7 . . Full Trace Events 4 | . 4 . . Feedback Events . | . . . . Feedback Blocked . | . . . . Robot Schematics Acquired 3 | . 3 . . Robots Built . | . . . . Authchips . | . . . . Time . | . . . . Total Robot Build Rating . | . . . . Part Schematics Acquired 7 | . 7 . . Parts Built . | . . . . Authchips . | . . . . Time . | . . . . Total Part Build Rating . | . . . . Part Studies Acquired . | . . . . Parts Repaired . | . . . . Time . | . . . . Parts Recycled . | . . . . Recycled Matter . | . . . . Retrieved Matter . | . . . . Retrieved Components 5 | . 5 . . Parts Scanalyzed . | . . . . Part Schematics Acquired . | . . . . Parts Damaged . | . . . . Bothacking | -11 -10 -10 -9 ------------ Run | Yrd Mat Min Mat Used RIF Installer . | . . . . Robots Hacked . | . . . . Non-combat . | . . . . Combat . | . . . . Robot Hacks Applied . | . . . . Relay Couplers Released . | . . . . Fabnet Peak Effective % . | . . . . Robots Rewired . | . . . . Allies Hacked . | . . . . Hacks Repelled . | . . . . Allies | -11 -10 -10 -9 -------- Run | Yrd Mat Min Mat Total Allies . | . . . . Largest Group . | . . . . Highest-Rated Group . | . . . . Highest-Rated Ally . | . . . . Total Orders . | . . . . Ally Attacks . | . . . . Total Damage . | . . . . Kills . | . . . . Allies Corrupted . | . . . . Allies Melted . | . . . . Intel | -11 -10 -10 -9 ------- Run | Yrd Mat Min Mat Active Infowar (turns) . | . . . . Robot Analysis Total . | . . . . Derelict Logs Recovered 1 | . . 1 . Drone Launches . | . . . . Drone Recoveries . | . . . . Exploration | -11 -10 -10 -9 ------------- Run | Yrd Mat Min Mat Turns Passed 2614 | 217 1332 1065 . Spaces Moved 1388 | 115 667 606 . Core 80 | 14 66 . . Treads 1308 | 101 601 606 . Legs . | . . . . Wheels . | . . . . Hover . | . . . . Flight . | . . . . Fastest Speed 50 | 50 160 152 . Average Speed 164 | 146 170 161 . Slowest Speed 450 | 160 450 240 . Overloaded Moves . | . . . . Propulsion Burnouts . | . . . . Robots Hopped . | . . . . Potential Cave-ins . | . . . . Cave-ins Triggered . | . . . . Exploration Rate (%) 49 | 8 91 99 1 Regions Visited 3 Branch Regions 1 Pre-discovered Areas 2 | . . 2 . Known Exits Taken 3 | 1 1 1 . Unknown Exits Taken . | . . . . Scrap Searched 1 | . . 1 . Spaces Dug . | . . . . Terrain Destroyed . | . . . . Melee . | . . . . Projectile . | . . . . AOE . | . . . . Terrain Rammed . | . . . . Walls Destroyed . | . . . . Machines Disabled . | . . . . Actions | -11 -10 -10 -9 --------- Run | Yrd Mat Min Mat Total 1566 | 142 771 653 . Wait 21 | 5 1 15 . Move 1385 | 114 666 605 . Hop . | . . . . Pick Up 38 | 7 24 7 . Fast Attach . | . . . . Attach 20 | 5 14 1 . Detach . | . . . . Swap 7 | . 4 3 . Drop 5 | . 3 2 . Fire 87 | 11 58 18 . Melee . | . . . . Ram . | . . . . Kick . | . . . . Crush 3 | . 1 2 . Escape Stasis . | . . . . Rewire . | . . . . Trap . | . . . . Miscellaneous . | . . . . Route ------- -11/Scrapyard -10/Materials (discovered 3 exits: *Mat x2 / *Min) -10/Mines (discovered 4 exits: *Mat x2 / *Exi / *Sub) -9/Materials History --------- Turn | Location | Event 9 | -11/Scrapyard | Identified exit to Materials 9 | -11/Scrapyard | Discovered exit to Materials (range 16) 218 | -11/Scrapyard | Entered Materials 218 | -10/Materials | Evolved 1 slot: Utility x1 314 | -10/Materials | Build established: Hacker-Mutant 705 | -10/Materials | Identified exit to Materials 705 | -10/Materials | Discovered exit to Materials (range 16) 925 | -10/Materials | Identified exit to Mines 925 | -10/Materials | Discovered exit to Mines (range 14) 1148 | -10/Materials | Discovered exit to Materials (range 14) 1378 | -10/Materials | Build established: Scavenger-Mutant 1550 | -10/Materials | Entered Mines 1570 | -10/Mines | Discovered exit to Materials (range 12) 1708 | -10/Mines | A weapon hastily lodged in a ceiling crevice suddenly fell to the ground 1747 | -10/Mines | Identified exit to Subcaves 1747 | -10/Mines | Discovered exit to Subcaves (range 6) 1853 | -10/Mines | Deemed a non-threat by the Exiles lab entrance 1853 | -10/Mines | Identified exit to Exiles 1853 | -10/Mines | Discovered exit to Exiles (range 5) 1959 | -10/Mines | Learned location of Storage (-7) 2461 | -10/Mines | Learned location of Zion (-6) 2496 | -10/Mines | Discovered exit to Materials (range 9) 2505 | -10/Mines | Met a Derelict shopkeep closing up shop 2615 | -10/Mines | Entered Materials 2615 | -9/Materials | Evolved 2 slots: Propulsion x1, Utility x1 2615 | -9/Materials | Self-destructed Last Messages --------------- 02536_ G-34 Mercenary destroyed. 02538_ Overheating: Energy bleed (-33). 02541_ Overheating: Particle Gun damaged (-36). 02542_ Lgt. Treads broken. 02542_ Overheating: Short circuit. 02571_ Acquired Adv. Treads. 02579_ Acquired EM Pulse Cannon. 02583_ Acquired Lgt. Deuterium Engine. 02587_ Dropped Broken Lgt. Treads. 02589_ Dropped Lgt. Treads. 02592_ Acquired 40 matter. 02598_ Acquired Missile Launcher. 02599_ R-06 Scavenger collects Ion Engine. 02600_ Acquired Shock Bomb Launcher. 02603_ R-06 Scavenger collects Aluminum Leg. 02606_ R-06 Scavenger collects Heat Sink. 02610_ R-06 Scavenger collects Aluminum Leg. PARAMETERS=PROPULSION+1,UTILITY+1 LOCATION=MATERIALS GOAL=ESCAPE Map ----- +----------------------------------------------------+ | | | | | | | | | | | | | | | | | | | | | | | ????????????????????????????????????????? | | ????????????????????????????????????????? | | ????????????????????????????????????????? | | ????????????????????????????????????????? | | ????????????????????????????????????????? | | ????????????????????????????????????????? | | ????????????????????????????????????????? | | ????????????????????????????????????????? | | ????????????????????????????????????????? | | ????????????????????????????????????????? | | ????????????????????????????????????????? | | ????????????????????????????????????????? | | ??????????????####+##########???????????? | | ??????????????# #??????????? | | ??????????????# @ #??????????? | | ??????????????# #??????????? | | ??????????????####+####### #??????????? | | ????????????????????????????????????????? | | ????????????????????????????????????????? | | ????????????????????????????????????????? | | ????????????????????????????????????????? | | ????????????????????????????????????????? | | ????????????????????????????????????????? | | ????????????????????????????????????????? | | ????????????????????????????????????????? | | ????????????????????????????????????????? | | ????????????????????????????????????????? | | ????????????????????????????????????????? | | ????????????????????????????????????????? | | ????????????????????????????????????????? | | ????????????????????????????????????????? | | ????????????????????????????????????????? | | ????????????????????????????????????????? | | ????????????????????????????????????????? | | ????????????????????????????????????????? | | ????????????????????????????????????????? | | ????????????????????????????????????????? | | ????????????????????????????????????????? | | ????????????????????????????????????????? | +----------------------------------------------------+ Best States ------------- Heat Dissipation 39 Energy Generation 14 Energy Capacity 250 Matter Stores 300 Matter Capacity 300 Sight Range 16 Terrain Scan Density 10 Armor Coverage 150 Resistance: KI 35 Resistance: TH 35 Resistance: EX 35 Resistance: EM 35 Resistance: I 35 Resistance: S 35 Resistance: P 35 Evasion (%) 50 Recoil Reduction 2 Offensive Hacking 20 Item Schematics ----------------- Hcp. Storage Unit | -10/Materials | Hacked Lgt. Treads | -10/Materials | Hacked Lrg. Storage Unit | -10/Materials | Hacked Sml. Storage Unit | -10/Materials | Hacked Huge Storage Unit | -10/Materials | Hacked Cargo Storage Unit | -10/Materials | Hacked Beam Cannon | -10/Materials | Hacked Robot Schematics ------------------ W-16 Scout | -10/Materials | Hacked G-34 Mercenary | -10/Materials | Hacked S-10 Pest | -10/Materials | Hacked Fabricated ------------ Nothing Repaired ---------- Nothing Studied --------- None Alien Tech Used ----------------- None Achievements -------------- None Challenges ------------ None Game ------ Seed StasisLaunchPick Manual? 0 Play Time 00:10:39 Cumulative 309.8 hours Start 2026.01.26 @ 11:10:46 End 2026.01.26 @ 11:21:19 Sessions 1 Manual Loads 0 Difficulty Explorer Special Mode None Game No. 482 Rogue 0 Adventurer 0 Explorer 482 Win Type - Total 0 Types 0/0/0/0/0/0/0/0/0/0 Lore% 77 Gallery% 70 Achievement% 56 Wizard Run 0 Options --------- Layout 1 ASCII 0 Keyboard 0 Movement Mouse Keybinds 1 Fullscreen 1 Font 24/Smallcaps Map View 50x35 Zoom Use 0% Tactical HUD 1 Map Filters NONE Filters NONE Steam 1 RUN: 66619b19-9033-4225-a68d-6cd8b8f7bb55